fUSD/lending_fUSD_20260516
["ID","MTS","AMOUNT","RATE_DAILY","PERIOD"]
[422359827,1778871043000,-549.92844731,0.00014999,2]
[422359803,1778871043000,-746.33,0.00014999,2]
[422359806,1778871043000,-549.88,0.00014999,2]
[422359826,1778871043000,-549.88,0.00014999,2]
[422359810,1778871043000,-549.88,0.00014999,2]
[422359805,1778871043000,-746.33,0.00014999,2]
[422359807,1778871043000,-746.33,0.00014999,2]
[422359808,1778871043000,-549.88,0.00014999,2]
[422359809,1778871043000,-746.33,0.00014999,2]
[422359811,1778871043000,-746.33,0.00014999,2]
[422359812,1778871043000,-549.88,0.00014999,2]
[422359817,1778871043000,-746.33,0.00014999,2]
[422359814,1778871043000,-549.88,0.00014999,2]
[422359815,1778871043000,-746.33,0.00014999,2]
[422359813,1778871043000,-746.33,0.00014999,2]
[422359804,1778871043000,-549.88,0.00014999,2]
[422359818,1778871043000,-746.36758592,0.00014999,2]
[422359823,1778871043000,-549.88,0.00014999,2]
[422359833,1778871043000,-500.0,0.00014999,2]
[422359831,1778871043000,-500.0,0.00014999,2]
[422359834,1778871043000,-500.0,0.00014999,2]
[422359835,1778871043000,-500.0,0.00014999,2]
[422359825,1778871043000,-549.88,0.00014999,2]
[422359828,1778871043000,-500.0,0.00014999,2]
[422359822,1778871043000,-549.88,0.00014999,2]
[422359820,1778871043000,-549.88,0.00014999,2]
[422359816,1778871043000,-549.88,0.00014999,2]
[422359819,1778871043000,-549.88,0.00014999,2]
[422359821,1778871043000,-549.88,0.00014999,2]
[422359824,1778871043000,-549.88,0.00014999,2]
[422359876,1778871044000,-500.0,0.00014999,2]
[422359878,1778871044000,-500.0,0.00014999,2]
[422359881,1778871044000,-500.0,0.00014999,2]
[422359880,1778871044000,-500.0,0.00014999,2]
[422359884,1778871044000,-500.0,0.00014999,2]
[422359879,1778871044000,-500.0,0.00014999,2]
[422359883,1778871044000,-500.0,0.00014999,2]
[422359874,1778871044000,-500.0,0.00014999,2]
[422359888,1778871044000,-500.0,0.00014999,2]
[422359882,1778871044000,-500.0,0.00014999,2]
[422359887,1778871044000,-500.0,0.00014999,2]
[422359868,1778871044000,-500.0,0.00014999,2]
[422359875,1778871044000,-500.0,0.00014999,2]
[422359871,1778871044000,-500.0,0.00014999,2]
[422359869,1778871044000,-500.0,0.00014999,2]
[422359872,1778871044000,-500.0,0.00014999,2]
[422359870,1778871044000,-500.0,0.00014999,2]
[422359873,1778871044000,-500.0,0.00014999,2]
[422359865,1778871044000,-500.0,0.00014999,2]
[422359867,1778871044000,-500.0,0.00014999,2]
[422359866,1778871044000,-500.0,0.00014999,2]
[422359864,1778871044000,-500.0,0.00014999,2]
[422359889,1778871044000,-500.0,0.00014999,2]
[422359886,1778871044000,-500.0,0.00014999,2]
[422359890,1778871044000,-500.0,0.00014999,2]
[422359898,1778871044000,-500.0,0.00014999,2]
[422359894,1778871044000,-500.0,0.00014999,2]
[422359893,1778871044000,-500.0,0.00014999,2]
[422359915,1778871044000,-666.0,0.00014999,2]
[422359912,1778871044000,-300.0,0.00014999,2]
[422359917,1778871044000,-4326894.58456528,0.00015,2]
[422359916,1778871044000,-300.0,0.00014999,2]
[422359913,1778871044000,-666.0,0.00014999,2]
[422359910,1778871044000,-300.0,0.00014999,2]
[422359909,1778871044000,-300.0,0.00014999,2]
[422359908,1778871044000,-254.28762829,0.00014999,2]
[422359907,1778871044000,-500.0,0.00014999,2]
[422359911,1778871044000,-300.0,0.00014999,2]
[422359906,1778871044000,-531.58948672,0.00014999,2]
[422359914,1778871044000,-300.0,0.00014999,2]
[422359904,1778871044000,-500.0,0.00014999,2]
[422359891,1778871044000,-500.0,0.00014999,2]
[422359899,1778871044000,-500.0,0.00014999,2]
[422359896,1778871044000,-500.0,0.00014999,2]
[422359901,1778871044000,-500.0,0.00014999,2]
[422359895,1778871044000,-500.0,0.00014999,2]
[422359900,1778871044000,-500.0,0.00014999,2]
[422359902,1778871044000,-500.0,0.00014999,2]
[422359905,1778871044000,-500.0,0.00014999,2]
[422359903,1778871044000,-500.0,0.00014999,2]
[422359897,1778871044000,-500.0,0.00014999,2]
[422359892,1778871044000,-500.0,0.00014999,2]
[422359920,1778871045000,-230.77568615,0.00014812,2]
[422359921,1778871045000,-338.48612123,0.000149,2]
[422359919,1778871045000,-250.0,0.00014,2]
[422359927,1778871046000,-157.09232906,0.000149,2]
[422359926,1778871046000,-346.90767094,0.000149,2]
[422359924,1778871046000,-1141.6,0.000149,2]
[422359930,1778871342000,224.59704636,0.00027833,120]
[422359931,1778871361000,152.0,8.915e-05,2]
[422359932,1778871462000,349.49746777,0.00027684,120]
[422359933,1778871463000,349.49746777,0.00027759,120]
[422359953,1778872232000,-4147.77872574,0.000127,2]
[422359952,1778872232000,-427.65,0.000127,2]
[422359958,1778872232000,-29367.836,0.000127,2]
[422359971,1778872232000,-1469.12579779,0.00012879,2]
[422359973,1778872232000,-154.79,0.00013079,2]
[422359969,1778872232000,-142382.40029132,0.000128,2]
[422359974,1778872232000,-1469.12579779,0.00013168,2]
[422359976,1778872232000,-500.0,0.00013304,2]
[422359977,1778872232000,-608.19926008,0.00013304,2]
[422359978,1778872232000,-500.0,0.00013304,2]
[422359960,1778872232000,-210.68238258,0.00012736,2]
[422359962,1778872232000,-1000.0,0.00012799,2]
[422359964,1778872232000,-224605.5869522,0.000128,2]
[422359967,1778872232000,-57782.93395648,0.000128,2]
[422359980,1778872232000,-500.0,0.00013304,2]
[422359990,1778872232000,-505.3184214,0.00013304,2]
[422359956,1778872232000,-8332.83074547,0.000127,2]
[422359942,1778872232000,-48.63880238,0.00012274,2]
[422359951,1778872232000,-5941.17315993,0.000127,2]
[422359991,1778872232000,-500.0,0.00013425,2]
[422359937,1778872232000,-445.17061352,0.00010467,2]
[422359938,1778872232000,-250.0,0.0001111,2]
[422359939,1778872232000,-767.709577,0.00012212,2]
[422359936,1778872232000,-262.54094224,0.000101,2]
[422359940,1778872232000,-156.36119762,0.00012274,2]
[422359943,1778872232000,-583.39,0.00012623,2]
[422359944,1778872232000,-201.16,0.00012667,2]
[422359941,1778872232000,-400.0,0.00012274,2]
[422359945,1778872232000,-1200.0,0.00012698,2]
[422359946,1778872232000,-1200.0,0.00012698,2]
[422359947,1778872232000,-1000.0,0.00012699,2]
[422359948,1778872232000,-150.0,0.00012699,2]
[422359950,1778872232000,-3905.23011433,0.000127,2]
[422359949,1778872232000,-187.0,0.00012699,2]
[422359954,1778872232000,-1832.24325453,0.000127,2]
[422359979,1778872232000,-500.0,0.00013304,2]
[422360004,1778872232000,-500.0,0.00013425,2]
[422359987,1778872232000,-500.0,0.00013304,2]
[422359998,1778872232000,-500.0,0.00013425,2]
[422360002,1778872232000,-500.0,0.00013425,2]
[422360007,1778872232000,-150.0,0.00013425,2]
[422360017,1778872232000,-150.0,0.00013488,2]
[422360008,1778872232000,-1469.12579779,0.00013456,2]
[422360006,1778872232000,-172.58069407,0.00013425,2]
[422360010,1778872232000,-500.0,0.00013488,2]
[422360009,1778872232000,-161.35,0.00013482,2]
[422360015,1778872232000,-150.0,0.00013488,2]
[422360014,1778872232000,-150.0,0.00013488,2]
[422360011,1778872232000,-150.0,0.00013488,2]
[422360016,1778872232000,-150.0,0.00013488,2]
[422360013,1778872232000,-150.18576381,0.00013488,2]
[422360012,1778872232000,-150.0,0.00013488,2]
[422359981,1778872232000,-500.0,0.00013304,2]
[422359999,1778872232000,-500.0,0.00013425,2]
[422359997,1778872232000,-500.0,0.00013425,2]
[422360018,1778872232000,-150.0,0.00013488,2]
[422359996,1778872232000,-500.0,0.00013425,2]
[422360000,1778872232000,-500.0,0.00013425,2]
[422359988,1778872232000,-500.0,0.00013304,2]
[422359984,1778872232000,-500.0,0.00013304,2]
[422359985,1778872232000,-500.0,0.00013304,2]
[422359982,1778872232000,-500.0,0.00013304,2]
[422359989,1778872232000,-500.0,0.00013304,2]
[422359992,1778872232000,-500.0,0.00013425,2]
[422359983,1778872232000,-500.0,0.00013304,2]
[422359994,1778872232000,-213.01114122,0.00013425,2]
[422360003,1778872232000,-500.0,0.00013425,2]
[422360019,1778872232000,-150.0,0.00013488,2]
[422359993,1778872232000,-500.0,0.00013425,2]
[422360005,1778872232000,-500.0,0.00013425,2]
[422359995,1778872232000,-150.0,0.00013425,2]
[422360001,1778872232000,-500.0,0.00013425,2]
[422359986,1778872232000,-500.0,0.00013304,2]
[422360060,1778872233000,-500.0,0.00013555,2]
[422360040,1778872233000,-500.0,0.00013555,2]
[422360046,1778872233000,-500.0,0.00013555,2]
[422360047,1778872233000,-458.32088617,0.00013555,2]
[422360044,1778872233000,-500.0,0.00013555,2]
[422360045,1778872233000,-500.0,0.00013555,2]
[422360050,1778872233000,-500.0,0.00013555,2]
[422360043,1778872233000,-500.0,0.00013555,2]
[422360059,1778872233000,-500.0,0.00013555,2]
[422360051,1778872233000,-500.0,0.00013555,2]
[422360052,1778872233000,-500.0,0.00013555,2]
[422360054,1778872233000,-500.0,0.00013555,2]
[422360053,1778872233000,-500.0,0.00013555,2]
[422360058,1778872233000,-500.0,0.00013555,2]
[422360057,1778872233000,-500.0,0.00013555,2]
[422360056,1778872233000,-314.4708012,0.00013555,2]
[422360048,1778872233000,-500.0,0.00013555,2]
[422360049,1778872233000,-500.0,0.00013555,2]
[422360042,1778872233000,-500.0,0.00013555,2]
[422360030,1778872233000,-313.97726629,0.00013518,2]
[422360041,1778872233000,-500.0,0.00013555,2]
[422360020,1778872233000,-150.03492144,0.00013488,2]
[422360029,1778872233000,-150.0,0.00013518,2]
[422360031,1778872233000,-150.0,0.00013523,2]
[422360055,1778872233000,-500.0,0.00013555,2]
[422360024,1778872233000,-150.0,0.00013488,2]
[422360028,1778872233000,-2000.0,0.00013508,2]
[422360023,1778872233000,-313.97726629,0.00013488,2]
[422360021,1778872233000,-150.14584826,0.00013488,2]
[422360022,1778872233000,-150.0,0.00013488,2]
[422360027,1778872233000,-313.97726629,0.00013503,2]
[422360026,1778872233000,-1000.0,0.000135,2]
[422360025,1778872233000,-150.0,0.00013498,2]
[422360033,1778872233000,-313.97726629,0.00013533,2]
[422360035,1778872233000,-150.0,0.00013548,2]
[422360032,1778872233000,-150.0,0.00013523,2]
[422360036,1778872233000,-313.97726629,0.00013548,2]
[422360034,1778872233000,-150.0,0.00013536,2]
[422360037,1778872233000,-254.18339889,0.00013555,2]
[422360038,1778872233000,-271.1999,0.00013555,2]
[422360039,1778872233000,-174.29952816,0.00013555,2]
[422360061,1778872233000,-500.0,0.00013555,2]
[422360073,1778872233000,-313.97726629,0.00013563,2]
[422360070,1778872233000,-150.0,0.00013559,2]
[422360090,1778872233000,-150.0,0.00013633,2]
[422360087,1778872233000,-313.97726629,0.00013624,2]
[422360063,1778872233000,-500.0,0.00013555,2]
[422360092,1778872233000,-150.0,0.00013638,2]
[422360091,1778872233000,-150.0,0.00013638,2]
[422360093,1778872233000,-313.97726629,0.00013639,2]
[422360095,1778872233000,-313.97726629,0.00013654,2]
[422360094,1778872233000,-150.0,0.00013645,2]
[422360088,1778872233000,-150.0,0.0001363,2]
[422360097,1778872233000,-150.0,0.00013666,2]
[422360099,1778872233000,-82.5799024,0.00013669,2]
[422360098,1778872233000,-150.0,0.00013668,2]
[422360100,1778872233000,-231.39736389,0.00013669,2]
[422360102,1778872233000,-150.0,0.00013681,2]
[422360105,1778872233000,-259.04345659,0.00013698,2]
[422360101,1778872233000,-150.0,0.00013675,2]
[422360103,1778872233000,-313.97726629,0.00013684,2]
[422360104,1778872233000,-150.0,0.00013697,2]
[422360096,1778872233000,-150.0,0.00013666,2]
[422360086,1778872233000,-313.97726629,0.00013609,2]
[422360089,1778872233000,-150.0,0.0001363,2]
[422360080,1778872233000,-150.0,0.00013595,2]
[422360064,1778872233000,-500.0,0.00013555,2]
[422360062,1778872233000,-500.0,0.00013555,2]
[422360065,1778872233000,-500.0,0.00013555,2]
[422360066,1778872233000,-1007.958065,0.00013556,2]
[422360085,1778872233000,-3704.61,0.00013608,2]
[422360067,1778872233000,-1309.833006,0.00013556,2]
[422360071,1778872233000,-150.0,0.00013559,2]
[422360068,1778872233000,-1295.043136,0.00013556,2]
[422360072,1778872233000,-150.0,0.00013563,2]
[422360069,1778872233000,-344.204802,0.00013556,2]
[422360074,1778872233000,-150.0,0.00013567,2]
[422360077,1778872233000,-150.0,0.00013584,2]
[422360084,1778872233000,-1591.79,0.00013608,2]
[422360079,1778872233000,-150.0,0.00013595,2]
[422360076,1778872233000,-313.97726629,0.00013578,2]
[422360081,1778872233000,-150.0,0.00013608,2]
[422360083,1778872233000,-276.33,0.00013608,2]
[422360082,1778872233000,-351.84,0.00013608,2]
[422360078,1778872233000,-313.97726629,0.00013594,2]
[422360075,1778872233000,-150.0,0.00013578,2]
[422360118,1778872238000,-500.0,0.00013555,2]
[422360113,1778872238000,-500.0,0.00013555,2]
[422360116,1778872238000,-500.0,0.00013555,2]
[422360115,1778872238000,-500.0,0.00013555,2]
[422360109,1778872238000,-1172.52474171,0.000127,2]
[422360112,1778872238000,-500.0,0.00013555,2]
[422360111,1778872238000,-500.0,0.00013555,2]
[422360110,1778872238000,-363.25955632,0.000127,2]
[422360122,1778872238000,-500.0,0.00013698,2]
[422360114,1778872238000,-500.0,0.00013555,2]
[422360119,1778872238000,-500.0,0.00013555,2]
[422360108,1778872238000,-464.21570197,0.000127,2]
[422360124,1778872238000,-500.0,0.00013698,2]
[422360143,1778872238000,-500.0,0.00013698,2]
[422360141,1778872238000,-500.0,0.00013698,2]
[422360135,1778872238000,-500.0,0.00013698,2]
[422360137,1778872238000,-500.0,0.00013698,2]
[422360139,1778872238000,-500.0,0.00013698,2]
[422360123,1778872238000,-500.0,0.00013698,2]
[422360129,1778872238000,-1102.82,0.00013698,2]
[422360131,1778872238000,-1102.82,0.00013698,2]
[422360127,1778872238000,-500.0,0.00013698,2]
[422360121,1778872238000,-240.95654341,0.00013698,2]
[422360120,1778872238000,-500.0,0.00013555,2]
[422360133,1778872238000,-500.0,0.00013698,2]
[422360241,1778872239000,-500.0,0.00013719,2]
[422360239,1778872239000,-500.0,0.00013719,2]
[422360229,1778872239000,-500.0,0.00013719,2]
[422360227,1778872239000,-500.0,0.00013719,2]
[422360220,1778872239000,-150.0,0.00013712,2]
[422360210,1778872239000,-2500.0,0.00013699,2]
[422360218,1778872239000,-150.0,0.00013702,2]
[422360206,1778872239000,-782.09,0.00013699,2]
[422360208,1778872239000,-719.64,0.00013699,2]
[422360203,1778872239000,-166.66,0.00013699,2]
[422360234,1778872239000,-500.0,0.00013719,2]
[422360223,1778872239000,-313.97726629,0.00013715,2]
[422360242,1778872239000,-500.0,0.00013719,2]
[422360238,1778872239000,-500.0,0.00013719,2]
[422360246,1778872239000,-500.0,0.00013719,2]
[422360235,1778872239000,-500.0,0.00013719,2]
[422360231,1778872239000,-549.88,0.00013719,2]
[422360243,1778872239000,-500.0,0.00013719,2]
[422360245,1778872239000,-500.0,0.00013719,2]
[422360212,1778872239000,-200.0,0.00013699,2]
[422360247,1778872239000,-150.0,0.00013724,2]
[422360249,1778872239000,-150.0,0.00013729,2]
[422360248,1778872239000,-150.0,0.00013727,2]
[422360250,1778872239000,-313.97726629,0.0001373,2]
[422360260,1778872239000,-313.97726629,0.00013775,2]
[422360259,1778872239000,-150.0,0.00013773,2]
[422360254,1778872239000,-1469.12579779,0.00013745,2]
[422360244,1778872239000,-500.0,0.00013719,2]
[422360216,1778872239000,-150.0,0.00013702,2]
[422360195,1778872239000,-500.0,0.00013698,2]
[422360201,1778872239000,-500.0,0.00013698,2]
[422360147,1778872239000,-500.0,0.00013698,2]
[422360145,1778872239000,-500.0,0.00013698,2]
[422360150,1778872239000,-500.0,0.00013698,2]
[422360154,1778872239000,-1106.42,0.00013698,2]
[422360152,1778872239000,-508.43277661,0.00013698,2]
[422360158,1778872239000,-500.0,0.00013698,2]
[422360156,1778872239000,-1106.42,0.00013698,2]
[422360162,1778872239000,-505.50097699,0.00013698,2]
[422360164,1778872239000,-500.0,0.00013698,2]
[422360160,1778872239000,-500.0,0.00013698,2]
[422360166,1778872239000,-549.0418679,0.00013698,2]
[422360168,1778872239000,-549.88,0.00013698,2]
[422360173,1778872239000,-500.0,0.00013698,2]
[422360170,1778872239000,-500.0,0.00013698,2]
[422360175,1778872239000,-162.16117544,0.00013698,2]
[422360177,1778872239000,-500.0,0.00013698,2]
[422360181,1778872239000,-500.0,0.00013698,2]
[422360189,1778872239000,-500.0,0.00013698,2]
[422360187,1778872239000,-746.33,0.00013698,2]
[422360183,1778872239000,-500.0,0.00013698,2]
[422360185,1778872239000,-500.0,0.00013698,2]
[422360179,1778872239000,-500.0,0.00013698,2]
[422360193,1778872239000,-500.0,0.00013698,2]
[422360251,1778872239000,-150.0,0.00013737,2]
[422360199,1778872239000,-500.0,0.00013698,2]
[422360191,1778872239000,-500.0,0.00013698,2]
[422360197,1778872239000,-500.0,0.00013698,2]
[422360214,1778872239000,-313.97726629,0.000137,2]
[422360258,1778872239000,-150.0,0.00013773,2]
[422360225,1778872239000,-500.0,0.00013719,2]
[422360252,1778872239000,-150.0,0.00013737,2]
[422360289,1778872239000,-445.0,0.00013805,2]
[422360297,1778872239000,-150.0,0.00013826,2]
[422360290,1778872239000,-445.0,0.00013805,2]
[422360294,1778872239000,-150.0,0.00013809,2]
[422360291,1778872239000,-454.0,0.00013805,2]
[422360292,1778872239000,-313.97726629,0.00013806,2]
[422360298,1778872239000,-166.66,0.00013836,2]
[422360295,1778872239000,-150.0,0.00013817,2]
[422360296,1778872239000,-313.97726629,0.00013821,2]
[422360293,1778872239000,-150.0,0.00013809,2]
[422360300,1778872239000,-150.0,0.00013844,2]
[422360302,1778872239000,-150.0,0.00013847,2]
[422360303,1778872239000,-759.24146496,0.00013849,2]
[422360299,1778872239000,-313.97726629,0.00013836,2]
[422360304,1778872239000,-313.97726629,0.00013851,2]
[422360309,1778872239000,-150.0,0.00013877,2]
[422360305,1778872239000,-150.0,0.00013862,2]
[422360308,1778872239000,-150.0,0.00013874,2]
[422360307,1778872239000,-313.97726629,0.00013866,2]
[422360310,1778872239000,-150.0,0.0001388,2]
[422360312,1778872239000,-313.97726629,0.00013881,2]
[422360311,1778872239000,-150.0,0.0001388,2]
[422360313,1778872239000,-150.0,0.00013882,2]
[422360316,1778872239000,-313.97726629,0.00013912,2]
[422360314,1778872239000,-313.97726629,0.00013896,2]
[422360315,1778872239000,-150.0,0.00013907,2]
[422360257,1778872239000,-500.0,0.00013762,2]
[422360317,1778872239000,-150.0,0.00013916,2]
[422360306,1778872239000,-150.0,0.00013862,2]
[422360288,1778872239000,-445.0,0.00013805,2]
[422360301,1778872239000,-150.0,0.00013844,2]
[422360281,1778872239000,-445.0,0.00013805,2]
[422360253,1778872239000,-313.97726629,0.00013745,2]
[422360283,1778872239000,-445.0,0.00013805,2]
[422360255,1778872239000,-150.0,0.00013757,2]
[422360262,1778872239000,-150.0,0.00013787,2]
[422360272,1778872239000,-445.0,0.00013805,2]
[422360273,1778872239000,-445.0,0.00013805,2]
[422360261,1778872239000,-150.0,0.00013778,2]
[422360263,1778872239000,-150.0,0.00013787,2]
[422360264,1778872239000,-313.97726629,0.0001379,2]
[422360270,1778872239000,-445.0,0.00013805,2]
[422360268,1778872239000,-445.0,0.00013805,2]
[422360267,1778872239000,-255.0,0.00013804,2]
[422360269,1778872239000,-445.0,0.00013805,2]
[422360265,1778872239000,-214.997284,0.00013795,2]
[422360266,1778872239000,-150.0,0.00013803,2]
[422360256,1778872239000,-313.97726629,0.0001376,2]
[422360275,1778872239000,-445.0,0.00013805,2]
[422360271,1778872239000,-445.0,0.00013805,2]
[422360284,1778872239000,-445.0,0.00013805,2]
[422360278,1778872239000,-445.0,0.00013805,2]
[422360279,1778872239000,-445.0,0.00013805,2]
[422360287,1778872239000,-445.0,0.00013805,2]
[422360276,1778872239000,-445.0,0.00013805,2]
[422360282,1778872239000,-445.0,0.00013805,2]
[422360280,1778872239000,-445.0,0.00013805,2]
[422360277,1778872239000,-445.0,0.00013805,2]
[422360286,1778872239000,-445.0,0.00013805,2]
[422360285,1778872239000,-445.0,0.00013805,2]
[422360274,1778872239000,-445.0,0.00013805,2]
[422360360,1778872240000,-500.0,0.00014078,2]
[422360355,1778872240000,-150.0,0.00014059,2]
[422360356,1778872240000,-313.97726629,0.00014063,2]
[422360352,1778872240000,-150.0,0.0001405,2]
[422360359,1778872240000,-746.33,0.00014078,2]
[422360358,1778872240000,-197.46,0.00014068,2]
[422360362,1778872240000,-313.97726629,0.00014078,2]
[422360361,1778872240000,-500.0,0.00014078,2]
[422360363,1778872240000,-150.0,0.00014087,2]
[422360353,1778872240000,-150.0,0.00014057,2]
[422360357,1778872240000,-150.0,0.00014068,2]
[422360354,1778872240000,-150.0,0.00014059,2]
[422360365,1778872240000,-313.97726629,0.00014093,2]
[422360370,1778872240000,-150.0,0.00014116,2]
[422360364,1778872240000,-150.0,0.00014087,2]
[422360373,1778872240000,-313.97726629,0.00014123,2]
[422360372,1778872240000,-150.0,0.00014119,2]
[422360367,1778872240000,-150.0,0.00014094,2]
[422360369,1778872240000,-166.66,0.0001411,2]
[422360366,1778872240000,-150.0,0.00014094,2]
[422360374,1778872240000,-247.4,0.00014126,2]
[422360368,1778872240000,-313.97726629,0.00014108,2]
[422360376,1778872240000,-150.0,0.0001413,2]
[422360375,1778872240000,-150.0,0.0001413,2]
[422360386,1778872240000,-313.97726629,0.00014184,2]
[422360378,1778872240000,-150.0,0.00014147,2]
[422360379,1778872240000,-313.97726629,0.00014154,2]
[422360351,1778872240000,-313.97726629,0.00014048,2]
[422360371,1778872240000,-150.0,0.00014117,2]
[422360348,1778872240000,-1469.12579779,0.00014034,2]
[422360323,1778872240000,-313.97726629,0.00013942,2]
[422360342,1778872240000,-150.0,0.00014023,2]
[422360387,1778872240000,-150.0,0.00014198,2]
[422360322,1778872240000,-150.0,0.00013937,2]
[422360320,1778872240000,-313.97726629,0.00013927,2]
[422360319,1778872240000,-150.0,0.00013923,2]
[422360318,1778872240000,-150.0,0.00013916,2]
[422360321,1778872240000,-150.0,0.00013937,2]
[422360324,1778872240000,-150.0,0.00013952,2]
[422360326,1778872240000,-313.97726629,0.00013957,2]
[422360328,1778872240000,-150.0,0.00013967,2]
[422360330,1778872240000,-150.0,0.00013971,2]
[422360335,1778872240000,-150.0,0.00013987,2]
[422360332,1778872240000,-166.66,0.00013973,2]
[422360327,1778872240000,-150.0,0.00013961,2]
[422360346,1778872240000,-313.97726629,0.00014033,2]
[422360325,1778872240000,-150.0,0.00013952,2]
[422360331,1778872240000,-313.97726629,0.00013972,2]
[422360334,1778872240000,-313.97726629,0.00013987,2]
[422360333,1778872240000,-150.0,0.00013987,2]
[422360336,1778872240000,-2730.1767011,0.0001399,2]
[422360337,1778872240000,-150.0,0.00013997,2]
[422360338,1778872240000,-313.97726629,0.00014002,2]
[422360341,1778872240000,-150.0,0.00014019,2]
[422360340,1778872240000,-313.97726629,0.00014017,2]
[422360339,1778872240000,-150.0,0.00014012,2]
[422360343,1778872240000,-150.0,0.00014023,2]
[422360349,1778872240000,-500.0,0.00014036,2]
[422360344,1778872240000,-150.0,0.00014027,2]
[422360350,1778872240000,-150.0,0.0001404,2]
[422360329,1778872240000,-1680.0,0.00013968,2]
[422360377,1778872240000,-313.97726629,0.00014139,2]
[422360417,1778872240000,-500.0,0.0001431,2]
[422360380,1778872240000,-150.0,0.00014162,2]
[422360424,1778872240000,-150.0,0.00014344,2]
[422360425,1778872240000,-313.97726629,0.00014351,2]
[422360427,1778872240000,-150.0,0.00014357,2]
[422360426,1778872240000,-150.0,0.00014355,2]
[422360416,1778872240000,-150.0,0.0001431,2]
[422360418,1778872240000,-150.0,0.00014312,2]
[422360422,1778872240000,-313.97726629,0.00014335,2]
[422360419,1778872240000,-313.97726629,0.0001432,2]
[422360420,1778872240000,-1469.12579779,0.00014323,2]
[422360421,1778872240000,-150.0,0.00014327,2]
[422360423,1778872240000,-150.0,0.00014344,2]
[422360428,1778872240000,-150.0,0.00014358,2]
[422360433,1778872240000,-166.66,0.00014384,2]
[422360415,1778872240000,-150.0,0.00014308,2]
[422360432,1778872240000,-313.97726629,0.00014381,2]
[422360438,1778872240000,-313.97726629,0.00014411,2]
[422360437,1778872240000,-150.0,0.00014406,2]
[422360436,1778872240000,-313.97726629,0.00014396,2]
[422360435,1778872240000,-150.0,0.00014387,2]
[422360429,1778872240000,-313.97726629,0.00014366,2]
[422360439,1778872240000,-150.0,0.00014415,2]
[422360430,1778872240000,-150.0,0.0001438,2]
[422360431,1778872240000,-150.0,0.0001438,2]
[422360441,1778872240000,-150.0,0.00014417,2]
[422360440,1778872240000,-150.0,0.00014415,2]
[422360388,1778872240000,-313.97726629,0.00014199,2]
[422360444,1778872240000,-313.97726629,0.00014426,2]
[422360442,1778872240000,-197.46,0.0001442,2]
[422360434,1778872240000,-150.0,0.00014387,2]
[422360414,1778872240000,-150.0,0.00014308,2]
[422360443,1778872240000,-150.0,0.00014424,2]
[422360413,1778872240000,-313.97726629,0.00014305,2]
[422360412,1778872240000,-350.0,0.00014301,2]
[422360384,1778872240000,-313.97726629,0.00014169,2]
[422360381,1778872240000,-150.0,0.00014164,2]
[422360382,1778872240000,-150.0,0.00014166,2]
[422360385,1778872240000,-150.0,0.00014177,2]